[Event "Late-Titled-Tuesday-Blitz-May-07-2024"]
[Site "Chess.com"]
[Date "2024.05.07"]
[Round "3"]
[White "ViIIagra"]
[Black "IndianSchoolOfSuffering"]
[Result "1-0"]
[WhiteElo "2845"]
[BlackElo "2402"]
[TimeControl "180+1"]
[EndTime "14:28:03 PDT"]
[Termination "ViIIagra won by resignation"]

1. g3 {[%clk 0:03:00.9]} 1... d5 {[%clk 0:02:59.3]} 2. Bg2 {[%clk 0:02:53.9]}
2... Nf6 {[%clk 0:02:58]} 3. d3 {[%clk 0:02:52.3]} 3... c6 {[%clk 0:02:58.1]} 4.
Nd2 {[%clk 0:02:50]} 4... g6 {[%clk 0:02:56.7]} 5. e4 {[%clk 0:02:49.4]} 5...
Bg7 {[%clk 0:02:57.1]} 6. e5 {[%clk 0:02:47.4]} 6... Nfd7 {[%clk 0:02:55.1]} 7.
d4 {[%clk 0:02:45.3]} 7... f6 {[%clk 0:02:53.8]} 8. f4 {[%clk 0:02:45]} 8... O-O
{[%clk 0:02:53.5]} 9. Ne2 {[%clk 0:02:42.4]} 9... Nb6 {[%clk 0:02:52.8]} 10. O-O
{[%clk 0:02:39.9]} 10... a5 {[%clk 0:02:43.8]} 11. a4 {[%clk 0:02:36.8]} 11...
Na6 {[%clk 0:02:38.6]} 12. h3 {[%clk 0:02:28.8]} 12... Nb4 {[%clk 0:02:32.4]}
13. c3 {[%clk 0:02:28]} 13... Nd3 {[%clk 0:02:26.7]} 14. Nb3 {[%clk 0:02:25.7]}
14... Nxc1 {[%clk 0:02:25]} 15. Nbxc1 {[%clk 0:02:26.6]} 15... Nc4 {[%clk
0:02:19.4]} 16. Qb3 {[%clk 0:02:21]} 16... Nd2 {[%clk 0:02:15.8]} 17. Qd1 {[%clk
0:02:14.6]} 17... Nxf1 {[%clk 0:02:15.6]} 18. Bxf1 {[%clk 0:02:15.4]} 18... fxe5
{[%clk 0:02:13.8]} 19. fxe5 {[%clk 0:02:14.9]} 19... Bf5 {[%clk 0:02:09.4]} 20.
Qd2 {[%clk 0:02:14]} 20... Be4 {[%clk 0:02:03.3]} 21. Nd3 {[%clk 0:02:12.7]}
21... Bxd3 {[%clk 0:01:58.5]} 22. Qxd3 {[%clk 0:02:13.6]} 22... Bh6 {[%clk
0:01:58.3]} 23. Bg2 {[%clk 0:02:03.3]} 23... Qd7 {[%clk 0:01:58]} 24. b3 {[%clk
0:01:44.3]} 24... Qf5 {[%clk 0:01:57.3]} 25. Rd1 {[%clk 0:01:33]} 25... e6
{[%clk 0:01:33.2]} 26. h4 {[%clk 0:01:23.2]} 26... Qxd3 {[%clk 0:01:27.6]} 27.
Rxd3 {[%clk 0:01:23]} 27... Kf7 {[%clk 0:01:27.4]} 28. g4 {[%clk 0:01:21.4]}
28... Ke7 {[%clk 0:01:23.8]} 29. g5 {[%clk 0:01:21.4]} 29... Bg7 {[%clk
0:01:23.6]} 30. c4 {[%clk 0:01:19.6]} 30... h6 {[%clk 0:01:17.9]} 31. Rg3 {[%clk
0:01:15.8]} 31... h5 {[%clk 0:01:16.5]} 32. Rd3 {[%clk 0:00:59.8]} 32... Kd7
{[%clk 0:01:15]} 33. Bf3 {[%clk 0:00:58]} 33... Rf5 {[%clk 0:01:11]} 34. Kf2
{[%clk 0:00:57.8]} 34... Raf8 {[%clk 0:01:10.5]} 35. Kg3 {[%clk 0:00:57.6]}
35... Rb8 {[%clk 0:01:05.8]} 36. Nf4 {[%clk 0:00:54.3]} 36... Rxf4 {[%clk
0:01:04]} 37. Kxf4 {[%clk 0:00:55.2]} 37... Bf8 {[%clk 0:00:58.1]} 38. Ke3
{[%clk 0:00:47.7]} 38... Bb4 {[%clk 0:00:54.3]} 39. Rd1 {[%clk 0:00:47.7]} 39...
Rf8 {[%clk 0:00:53.1]} 40. Be2 {[%clk 0:00:45.2]} 40... c5 {[%clk 0:00:40.5]}
41. cxd5 {[%clk 0:00:39.8]} 41... cxd4+ {[%clk 0:00:39.2]} 42. Ke4 {[%clk
0:00:35.1]} 42... exd5+ {[%clk 0:00:37.7]} 43. Kxd5 {[%clk 0:00:36]} 43... Rf4
{[%clk 0:00:32.2]} 44. Bd3 {[%clk 0:00:32.9]} 44... Rxh4 {[%clk 0:00:27.5]} 45.
Bxg6 {[%clk 0:00:32.9]} 45... Rg4 {[%clk 0:00:27.7]} 46. Bf5+ {[%clk 0:00:33.2]}
46... Ke7 {[%clk 0:00:26.1]} 47. Bxg4 {[%clk 0:00:33.7]} 47... hxg4 {[%clk
0:00:26.7]} 48. Rxd4 {[%clk 0:00:34.4]} 48... g3 {[%clk 0:00:26.3]} 49. Rg4
{[%clk 0:00:35.3]} 49... Be1 {[%clk 0:00:25.6]} 50. g6 {[%clk 0:00:35.9]} 1-0

[Event "Late-Titled-Tuesday-Blitz-May-07-2024"]
[Site "Chess.com"]
[Date "2024.05.07"]
[Round "3"]
[White "sofaceindisguise"]
[Black "yobdc"]
[Result "1-0"]
[WhiteElo "2725"]
[BlackElo "2503"]
[TimeControl "180+1"]
[EndTime "14:28:05 PDT"]
[Termination "sofaceindisguise won on time"]

1. e4 {[%clk 0:03:00.1]} 1... c5 {[%clk 0:02:46.5]} 2. Nf3 {[%clk 0:02:59.5]}
2... Nf6 {[%clk 0:02:46.4]} 3. e5 {[%clk 0:02:58.4]} 3... Nd5 {[%clk 0:02:46.3]}
4. Nc3 {[%clk 0:02:59.3]} 4... Nxc3 {[%clk 0:02:46.5]} 5. dxc3 {[%clk
0:03:00.2]} 5... Nc6 {[%clk 0:02:46.7]} 6. Bf4 {[%clk 0:03:00.5]} 6... Qb6
{[%clk 0:02:46.5]} 7. b3 {[%clk 0:02:59.4]} 7... Qc7 {[%clk 0:02:46.8]} 8. Qd2
{[%clk 0:02:53.9]} 8... e6 {[%clk 0:02:46.7]} 9. h4 {[%clk 0:02:53.6]} 9... h6
{[%clk 0:02:46.9]} 10. h5 {[%clk 0:02:53.5]} 10... a6 {[%clk 0:02:44.7]} 11.
O-O-O {[%clk 0:02:53.1]} 11... b5 {[%clk 0:02:44.9]} 12. Kb1 {[%clk 0:02:53.2]}
12... c4 {[%clk 0:02:45]} 13. Rh4 {[%clk 0:02:31.7]} 13... Ne7 {[%clk
0:02:36.2]} 14. Bh2 {[%clk 0:02:26.2]} 14... Nd5 {[%clk 0:02:32.5]} 15. bxc4
{[%clk 0:02:03.8]} 15... bxc4 {[%clk 0:02:29.8]} 16. Bxc4 {[%clk 0:02:04.2]}
16... Rb8+ {[%clk 0:02:24.8]} 17. Ka1 {[%clk 0:02:04.5]} 17... Ba3 {[%clk
0:02:10.8]} 18. Rb1 {[%clk 0:02:03.8]} 18... Rxb1+ {[%clk 0:01:56.8]} 19. Kxb1
{[%clk 0:02:04.7]} 19... Bb7 {[%clk 0:01:45.3]} 20. Rg4 {[%clk 0:01:58.2]} 20...
a5 {[%clk 0:01:26.2]} 21. Bb3 {[%clk 0:01:19.3]} 21... Nxc3+ {[%clk 0:01:16.5]}
22. Ka1 {[%clk 0:01:19.4]} 22... Ba6 {[%clk 0:00:30]} 23. Rxg7 {[%clk
0:00:39.8]} 23... a4 {[%clk 0:00:24.3]} 24. Qf4 {[%clk 0:00:39.1]} 24... Rf8
{[%clk 0:00:22.4]} 25. Nd4 {[%clk 0:00:20.7]} 25... axb3 {[%clk 0:00:20.2]} 26.
cxb3 {[%clk 0:00:21.1]} 26... Na4 {[%clk 0:00:10.3]} 27. Qe3 {[%clk 0:00:09.5]}
1-0

[Event "Late-Titled-Tuesday-Blitz-May-07-2024"]
[Site "Chess.com"]
[Date "2024.05.07"]
[Round "3"]
[White "Veleamater"]
[Black "JaackCamel"]
[Result "0-1"]
[WhiteElo "2424"]
[BlackElo "2215"]
[TimeControl "180+1"]
[EndTime "14:28:05 PDT"]
[Termination "JaackCamel won by resignation"]

1. g3 {[%clk 0:03:00.9]} 1... d5 {[%clk 0:02:58.7]} 2. Bg2 {[%clk 0:03:00.8]}
2... e5 {[%clk 0:02:58.4]} 3. d3 {[%clk 0:03:01.4]} 3... Nf6 {[%clk 0:02:54.8]}
4. Nf3 {[%clk 0:03:01.9]} 4... Bd6 {[%clk 0:02:49.2]} 5. O-O {[%clk 0:03:01.8]}
5... O-O {[%clk 0:02:48.9]} 6. h3 {[%clk 0:03:02.3]} 6... h6 {[%clk 0:02:47]} 7.
Nc3 {[%clk 0:03:02.1]} 7... c6 {[%clk 0:02:46.7]} 8. e4 {[%clk 0:03:01.4]} 8...
d4 {[%clk 0:02:46]} 9. Ne2 {[%clk 0:03:01.5]} 9... c5 {[%clk 0:02:45.4]} 10. Ne1
{[%clk 0:03:01.4]} 10... Nc6 {[%clk 0:02:44.3]} 11. f4 {[%clk 0:03:00.9]} 11...
Qc7 {[%clk 0:02:31.5]} 12. Rf2 {[%clk 0:03:00.6]} 12... Ne8 {[%clk 0:02:28.1]}
13. f5 {[%clk 0:03:00.3]} 13... f6 {[%clk 0:02:27.3]} 14. g4 {[%clk 0:02:58.9]}
14... b6 {[%clk 0:02:24.7]} 15. Bf1 {[%clk 0:02:59.1]} 15... Bb7 {[%clk
0:02:22.4]} 16. Rg2 {[%clk 0:02:58.2]} 16... Rd8 {[%clk 0:02:22.1]} 17. h4
{[%clk 0:02:57.8]} 17... Kf7 {[%clk 0:02:22.4]} 18. Ng3 {[%clk 0:02:57.4]} 18...
Ke7 {[%clk 0:02:22.9]} 19. g5 {[%clk 0:02:57.7]} 19... hxg5 {[%clk 0:02:19.9]}
20. hxg5 {[%clk 0:02:57]} 20... Kd7 {[%clk 0:02:20]} 21. Nh5 {[%clk 0:02:55.8]}
21... Kc8 {[%clk 0:02:18.4]} 22. Bd2 {[%clk 0:02:52]} 22... Rh8 {[%clk
0:02:17.4]} 23. a3 {[%clk 0:02:51.7]} 23... Qf7 {[%clk 0:02:07.8]} 24. Be2
{[%clk 0:02:47.9]} 24... Be7 {[%clk 0:01:57.6]} 25. gxf6 {[%clk 0:02:42.9]}
25... Bxf6 {[%clk 0:01:54]} 26. b4 {[%clk 0:02:41.3]} 26... c4 {[%clk
0:01:53.4]} 27. dxc4 {[%clk 0:02:39.2]} 27... d3 {[%clk 0:01:45.4]} 28. cxd3
{[%clk 0:02:35.2]} 28... Nd4 {[%clk 0:01:44.9]} 29. Ng3 {[%clk 0:02:26.7]} 29...
Nd6 {[%clk 0:01:34.8]} 30. Bh5 {[%clk 0:02:26.2]} 30... Qe7 {[%clk 0:01:32.5]}
31. Bg6 {[%clk 0:02:22.6]} 31... Kb8 {[%clk 0:01:32.2]} 32. Nf3 {[%clk
0:02:19.8]} 32... Nxf3+ {[%clk 0:01:23.6]} 33. Qxf3 {[%clk 0:02:19.1]} 33... Nf7
{[%clk 0:01:16.9]} 34. Nh5 {[%clk 0:02:18]} 34... Nd6 {[%clk 0:01:03.8]} 35.
Nxf6 {[%clk 0:02:14.1]} 35... gxf6 {[%clk 0:01:01.7]} 36. c5 {[%clk 0:02:13.7]}
36... Nb5 {[%clk 0:00:59.2]} 37. cxb6 {[%clk 0:02:04.8]} 37... axb6 {[%clk
0:00:58.7]} 38. a4 {[%clk 0:02:00.7]} 38... Nd4 {[%clk 0:00:58.7]} 39. Qf2
{[%clk 0:02:00.2]} 39... Rc8 {[%clk 0:00:56.8]} 40. a5 {[%clk 0:01:55.5]} 40...
Rc2 {[%clk 0:00:52.2]} 41. Rd1 {[%clk 0:01:42.8]} 41... bxa5 {[%clk 0:00:48]}
42. bxa5 {[%clk 0:01:42]} 42... Rhc8 {[%clk 0:00:43.2]} 43. Kf1 {[%clk
0:01:39.5]} 43... Ba6 {[%clk 0:00:43.1]} 44. Rg3 {[%clk 0:01:38.3]} 44... Qa3
{[%clk 0:00:41.8]} 45. Qe3 {[%clk 0:01:35.1]} 45... Qb2 {[%clk 0:00:35]} 46. Ke1
{[%clk 0:01:33.3]} 46... Ka8 {[%clk 0:00:34.5]} 47. Bf7 {[%clk 0:01:32.5]} 47...
Rxd2 {[%clk 0:00:23.7]} 48. Qxd2 {[%clk 0:01:32.3]} 48... Rc2 {[%clk 0:00:20.2]}
49. Bd5+ {[%clk 0:01:30.4]} 49... Ka7 {[%clk 0:00:15.9]} 50. Rg7+ {[%clk
0:01:23.7]} 50... Kb8 {[%clk 0:00:16]} 51. Qh6 {[%clk 0:01:03.1]} 51... Re2+
{[%clk 0:00:13.3]} 52. Kf1 {[%clk 0:01:00.9]} 52... Rf2+ {[%clk 0:00:13.1]} 53.
Kg1 {[%clk 0:01:01.2]} 53... Nf3+ {[%clk 0:00:13]} 54. Kh1 {[%clk 0:01:00.2]}
54... Rh2+ {[%clk 0:00:12.7]} 0-1

[Event "Late-Titled-Tuesday-Blitz-May-07-2024"]
[Site "Chess.com"]
[Date "2024.05.07"]
[Round "3"]
[White "Smiechu"]
[Black "deathadder96"]
[Result "0-1"]
[WhiteElo "2439"]
[BlackElo "2855"]
[TimeControl "180+1"]
[EndTime "14:28:08 PDT"]
[Termination "deathadder96 won on time"]

1. e4 {[%clk 0:03:00.9]} 1... c5 {[%clk 0:02:57]} 2. Nf3 {[%clk 0:03:00.9]} 2...
d6 {[%clk 0:02:57.1]} 3. d4 {[%clk 0:03:01.4]} 3... cxd4 {[%clk 0:02:58]} 4.
Nxd4 {[%clk 0:03:02]} 4... Nf6 {[%clk 0:02:58.5]} 5. Nc3 {[%clk 0:03:02.4]} 5...
a6 {[%clk 0:02:59.2]} 6. Be3 {[%clk 0:03:02.2]} 6... e5 {[%clk 0:02:59.4]} 7.
Nb3 {[%clk 0:03:02.2]} 7... Be6 {[%clk 0:02:59.7]} 8. Qd2 {[%clk 0:03:02.8]}
8... Nbd7 {[%clk 0:02:59.4]} 9. O-O-O {[%clk 0:03:03.4]} 9... Be7 {[%clk
0:02:55.1]} 10. f4 {[%clk 0:03:03.2]} 10... Rc8 {[%clk 0:02:53.2]} 11. f5 {[%clk
0:03:02.9]} 11... Bc4 {[%clk 0:02:53.5]} 12. g4 {[%clk 0:03:03]} 12... h6 {[%clk
0:02:44.7]} 13. Rg1 {[%clk 0:03:01.9]} 13... b5 {[%clk 0:02:43.7]} 14. h4 {[%clk
0:02:46.7]} 14... b4 {[%clk 0:02:40.4]} 15. Nd5 {[%clk 0:02:44.7]} 15... Nxd5
{[%clk 0:02:24]} 16. exd5 {[%clk 0:02:42.6]} 16... a5 {[%clk 0:02:16]} 17. Bxc4
{[%clk 0:02:23.7]} 17... Rxc4 {[%clk 0:02:16.9]} 18. Qe2 {[%clk 0:02:22.7]}
18... Qc7 {[%clk 0:01:54]} 19. Nxa5 {[%clk 0:02:09.2]} 19... Re4 {[%clk
0:01:54.2]} 20. Nc6 {[%clk 0:02:04.5]} 20... Bxh4 {[%clk 0:01:54.2]} 21. Kb1
{[%clk 0:01:17.1]} 21... Bg5 {[%clk 0:01:52.5]} 22. Rg3 {[%clk 0:01:10.3]} 22...
Bf4 {[%clk 0:01:42]} 23. Rf3 {[%clk 0:01:08.1]} 23... Nf6 {[%clk 0:01:28.1]} 24.
Qd3 {[%clk 0:00:19.7]} 24... O-O {[%clk 0:01:24.1]} 25. Bxf4 {[%clk 0:00:17.8]}
25... exf4 {[%clk 0:01:24]} 26. Rdf1 {[%clk 0:00:13.2]} 26... Rfe8 {[%clk
0:01:23.9]} 27. Qd1 {[%clk 0:00:09.2]} 27... Nxd5 {[%clk 0:01:17]} 28. Nd4
{[%clk 0:00:08.6]} 28... Ne3 {[%clk 0:01:16.8]} 29. Rxe3 {[%clk 0:00:07.7]}
29... fxe3 {[%clk 0:01:16.8]} 30. Ne2 {[%clk 0:00:07.8]} 30... Rxg4 {[%clk
0:01:15.7]} 31. f6 {[%clk 0:00:07.7]} 31... g6 {[%clk 0:01:11]} 32. Rh1 {[%clk
0:00:07.2]} 32... h5 {[%clk 0:01:11]} 33. Qe1 {[%clk 0:00:05.6]} 33... d5 {[%clk
0:01:09.1]} 34. Nc1 {[%clk 0:00:05.7]} 34... Qe5 {[%clk 0:01:08.1]} 35. Nd3
{[%clk 0:00:05.6]} 35... Qxf6 {[%clk 0:01:08.3]} 36. Rf1 {[%clk 0:00:05.7]}
36... Qe7 {[%clk 0:01:07.7]} 37. Qe2 {[%clk 0:00:04.2]} 37... Qe4 {[%clk
0:01:05.1]} 38. Ne1 {[%clk 0:00:04]} 38... Rf4 {[%clk 0:01:00.9]} 39. Rg1 {[%clk
0:00:03.4]} 39... Qf5 {[%clk 0:00:57.3]} 40. Nd3 {[%clk 0:00:02.2]} 40... Rf3
{[%clk 0:00:50.1]} 41. Re1 {[%clk 0:00:00.6]} 41... Re4 {[%clk 0:00:49.3]} 42.
Nc5 {[%clk 0:00:00.2]} 42... Rc4 {[%clk 0:00:48.6]} 0-1

[Event "Late-Titled-Tuesday-Blitz-May-07-2024"]
[Site "Chess.com"]
[Date "2024.05.07"]
[Round "3"]
[White "LuisFSiles"]
[Black "Navyblue1"]
[Result "1-0"]
[WhiteElo "2480"]
[BlackElo "2227"]
[TimeControl "180+1"]
[EndTime "14:28:08 PDT"]
[Termination "LuisFSiles won by resignation"]

1. e4 {[%clk 0:03:00.9]} 1... c5 {[%clk 0:02:53.2]} 2. Nf3 {[%clk 0:03:00.6]}
2... d6 {[%clk 0:02:51.4]} 3. Bb5+ {[%clk 0:03:00.2]} 3... Nd7 {[%clk
0:02:50.7]} 4. Ba4 {[%clk 0:02:57]} 4... a6 {[%clk 0:02:49.4]} 5. c4 {[%clk
0:02:55.3]} 5... g6 {[%clk 0:02:46.8]} 6. O-O {[%clk 0:02:54]} 6... Bg7 {[%clk
0:02:46.8]} 7. Nc3 {[%clk 0:02:53.8]} 7... Nf6 {[%clk 0:02:46.1]} 8. d3 {[%clk
0:02:43.2]} 8... O-O {[%clk 0:02:45.4]} 9. Ne1 {[%clk 0:02:42.3]} 9... Ne5
{[%clk 0:02:25.4]} 10. h3 {[%clk 0:02:40.8]} 10... Nc6 {[%clk 0:02:24.6]} 11.
Bxc6 {[%clk 0:02:38.5]} 11... bxc6 {[%clk 0:02:24.2]} 12. f4 {[%clk 0:02:38.3]}
12... e6 {[%clk 0:02:22]} 13. Nf3 {[%clk 0:02:37.2]} 13... d5 {[%clk 0:02:18.1]}
14. Qe1 {[%clk 0:02:14]} 14... a5 {[%clk 0:01:56.1]} 15. Qh4 {[%clk 0:01:59.5]}
15... Ba6 {[%clk 0:01:26.9]} 16. e5 {[%clk 0:01:50.7]} 16... Nd7 {[%clk
0:01:24]} 17. Qxd8 {[%clk 0:01:45.3]} 17... Rfxd8 {[%clk 0:01:17.8]} 18. cxd5
{[%clk 0:01:45]} 18... cxd5 {[%clk 0:01:12.2]} 19. Rd1 {[%clk 0:01:44.5]} 19...
Nb6 {[%clk 0:01:08.1]} 20. d4 {[%clk 0:01:43.3]} 20... Bf8 {[%clk 0:01:01.9]}
21. b3 {[%clk 0:01:35.2]} 21... cxd4 {[%clk 0:00:52.1]} 22. Nxd4 {[%clk
0:01:35]} 22... Rdc8 {[%clk 0:00:49]} 23. Ncb5 {[%clk 0:01:24.6]} 23... Bc5
{[%clk 0:00:44]} 24. Kh2 {[%clk 0:01:24.9]} 24... Nd7 {[%clk 0:00:28.6]} 25. a4
{[%clk 0:01:20.3]} 25... Rab8 {[%clk 0:00:19]} 26. Bd2 {[%clk 0:01:10.9]} 26...
Bxd4 {[%clk 0:00:16.3]} 27. Nxd4 {[%clk 0:01:10.1]} 27... Nc5 {[%clk 0:00:15.5]}
28. Bxa5 {[%clk 0:00:57]} 28... Nxb3 {[%clk 0:00:15.3]} 29. Rab1 {[%clk
0:00:45.8]} 29... Nxd4 {[%clk 0:00:14.4]} 30. Rxb8 {[%clk 0:00:44.6]} 30... Rxb8
{[%clk 0:00:14.4]} 31. Rxd4 {[%clk 0:00:44.3]} 31... Bc4 {[%clk 0:00:14.9]} 32.
Bd2 {[%clk 0:00:31.9]} 32... Rb2 {[%clk 0:00:14.7]} 33. a5 {[%clk 0:00:32.1]}
33... Rxd2 {[%clk 0:00:14.4]} 34. Rxd2 {[%clk 0:00:31.6]} 34... Kg7 {[%clk
0:00:12.1]} 35. Kg3 {[%clk 0:00:30.4]} 35... f6 {[%clk 0:00:12]} 36. Rc2 {[%clk
0:00:26.6]} 36... Ba6 {[%clk 0:00:10.8]} 37. Rc6 {[%clk 0:00:26]} 37... Bd3
{[%clk 0:00:10]} 38. a6 {[%clk 0:00:25.1]} 38... Bxa6 {[%clk 0:00:09.2]} 39.
Rxa6 {[%clk 0:00:25]} 39... fxe5 {[%clk 0:00:09.9]} 40. fxe5 {[%clk 0:00:25]}
1-0

[Event "Late-Titled-Tuesday-Blitz-May-07-2024"]
[Site "Chess.com"]
[Date "2024.05.07"]
[Round "3"]
[White "FairChess_on_YouTube"]
[Black "Mischuk_D"]
[Result "1-0"]
[WhiteElo "3082"]
[BlackElo "2811"]
[TimeControl "180+1"]
[EndTime "14:28:09 PDT"]
[Termination "FairChess_on_YouTube won by resignation"]

1. d4 {[%clk 0:03:00.9]} 1... d5 {[%clk 0:02:58.9]} 2. c4 {[%clk 0:03:01.2]}
2... e6 {[%clk 0:02:59]} 3. Nc3 {[%clk 0:03:00.8]} 3... c6 {[%clk 0:02:59.3]} 4.
Qb3 {[%clk 0:02:57]} 4... dxc4 {[%clk 0:02:56.4]} 5. Qxc4 {[%clk 0:02:57.1]}
5... b5 {[%clk 0:02:53.8]} 6. Qd3 {[%clk 0:02:57.3]} 6... a6 {[%clk 0:02:52.5]}
7. Bf4 {[%clk 0:02:52.9]} 7... Nf6 {[%clk 0:02:44.2]} 8. e4 {[%clk 0:02:47.6]}
8... Bb7 {[%clk 0:02:37.7]} 9. O-O-O {[%clk 0:02:43]} 9... Nbd7 {[%clk
0:02:20.4]} 10. Nf3 {[%clk 0:02:33.6]} 10... b4 {[%clk 0:02:15.2]} 11. Na4
{[%clk 0:02:32.2]} 11... c5 {[%clk 0:02:06.7]} 12. d5 {[%clk 0:02:30.3]} 12...
exd5 {[%clk 0:01:51.9]} 13. exd5 {[%clk 0:02:31.2]} 13... Bxd5 {[%clk
0:01:50.9]} 14. Ng5 {[%clk 0:02:08]} 14... Be7 {[%clk 0:01:45.5]} 15. Qf5 {[%clk
0:02:07.1]} 15... h6 {[%clk 0:01:29.2]} 16. Rxd5 {[%clk 0:01:47.8]} 16... hxg5
{[%clk 0:01:29.1]} 17. Qxg5 {[%clk 0:01:42]} 17... Rh5 {[%clk 0:01:21.1]} 18.
Qxh5 {[%clk 0:01:40.6]} 18... Nxh5 {[%clk 0:01:21.2]} 19. Rxh5 {[%clk
0:01:41.3]} 19... Nf8 {[%clk 0:01:06.2]} 20. Be2 {[%clk 0:01:28.8]} 20... g6
{[%clk 0:01:03.8]} 21. Re5 {[%clk 0:01:05]} 21... Ne6 {[%clk 0:00:59.8]} 22. Be3
{[%clk 0:00:57.7]} 22... Bf6 {[%clk 0:00:54.9]} 23. Re4 {[%clk 0:00:54]} 23...
Bg5 {[%clk 0:00:55.4]} 24. f4 {[%clk 0:00:52.6]} 24... Be7 {[%clk 0:00:54.3]}
25. Rd1 {[%clk 0:00:52.5]} 25... Qc7 {[%clk 0:00:53.3]} 26. g4 {[%clk
0:00:47.7]} 26... Kf8 {[%clk 0:00:48.8]} 27. f5 {[%clk 0:00:46.5]} 27... Nd4
{[%clk 0:00:45.7]} 28. Bc4 {[%clk 0:00:44.2]} 28... Qxh2 {[%clk 0:00:33]} 29.
Bxd4 {[%clk 0:00:35]} 29... cxd4 {[%clk 0:00:33.9]} 30. fxg6 {[%clk 0:00:35.4]}
30... Rc8 {[%clk 0:00:32.3]} 31. Nb6 {[%clk 0:00:27.7]} 31... Bg5+ {[%clk
0:00:28.9]} 32. Kb1 {[%clk 0:00:27.5]} 32... Rc6 {[%clk 0:00:29.5]} 33. Nd7+
{[%clk 0:00:21.3]} 33... Kg7 {[%clk 0:00:28.9]} 34. gxf7 {[%clk 0:00:21.9]}
34... Rc8 {[%clk 0:00:24.8]} 35. Re8 {[%clk 0:00:20.6]} 35... d3 {[%clk
0:00:11.5]} 36. f8=Q+ {[%clk 0:00:20.1]} 1-0

[Event "Late-Titled-Tuesday-Blitz-May-07-2024"]
[Site "Chess.com"]
[Date "2024.05.07"]
[Round "3"]
[White "yuriydovzik"]
[Black "WilsonPalencia21"]
[Result "0-1"]
[WhiteElo "2146"]
[BlackElo "2548"]
[TimeControl "180+1"]
[EndTime "14:28:09 PDT"]
[Termination "WilsonPalencia21 won on time"]

1. b3 {[%clk 0:02:53.9]} 1... c5 {[%clk 0:02:57.8]} 2. Bb2 {[%clk 0:02:51.2]}
2... d5 {[%clk 0:02:53.6]} 3. e3 {[%clk 0:02:46.3]} 3... Nc6 {[%clk 0:02:44.1]}
4. f4 {[%clk 0:02:43.4]} 4... Nf6 {[%clk 0:02:40.5]} 5. Nf3 {[%clk 0:02:42.1]}
5... g6 {[%clk 0:02:40.1]} 6. Bb5 {[%clk 0:02:38.4]} 6... Bg7 {[%clk 0:02:40.2]}
7. O-O {[%clk 0:02:31.1]} 7... O-O {[%clk 0:02:39.9]} 8. Bxc6 {[%clk 0:02:22.2]}
8... bxc6 {[%clk 0:02:40.4]} 9. d3 {[%clk 0:02:20.1]} 9... Re8 {[%clk
0:02:39.3]} 10. Ne5 {[%clk 0:02:08.3]} 10... Qc7 {[%clk 0:02:22.1]} 11. Nd2
{[%clk 0:02:06.5]} 11... Ng4 {[%clk 0:02:13.1]} 12. Qf3 {[%clk 0:01:51]} 12...
Nxe5 {[%clk 0:02:06.7]} 13. Bxe5 {[%clk 0:01:38.6]} 13... Bxe5 {[%clk
0:01:57.8]} 14. fxe5 {[%clk 0:01:38.3]} 14... Be6 {[%clk 0:01:58.4]} 15. Qg3
{[%clk 0:01:31.4]} 15... Qa5 {[%clk 0:01:54.9]} 16. Nf3 {[%clk 0:01:28.9]} 16...
f6 {[%clk 0:01:27.3]} 17. Rf2 {[%clk 0:01:10.1]} 17... Rf8 {[%clk 0:01:23.9]}
18. a4 {[%clk 0:01:07.9]} 18... Qc3 {[%clk 0:01:19.6]} 19. Raf1 {[%clk
0:01:04.9]} 19... Rf7 {[%clk 0:01:15]} 20. exf6 {[%clk 0:01:04]} 20... exf6
{[%clk 0:01:14.8]} 21. Qd6 {[%clk 0:01:00.8]} 21... Bd7 {[%clk 0:01:01.9]} 22.
Ne5 {[%clk 0:00:53.5]} 22... Qxe5 {[%clk 0:00:59.8]} 23. Qxe5 {[%clk 0:00:52.3]}
23... fxe5 {[%clk 0:01:00.2]} 24. Rxf7 {[%clk 0:00:52.2]} 24... Bf5 {[%clk
0:00:53.6]} 25. Rc7 {[%clk 0:00:41.4]} 25... c4 {[%clk 0:00:50.8]} 26. bxc4
{[%clk 0:00:37.1]} 26... dxc4 {[%clk 0:00:50.9]} 27. Rxc6 {[%clk 0:00:31.7]}
27... cxd3 {[%clk 0:00:50.6]} 28. cxd3 {[%clk 0:00:28.3]} 28... Bxd3 {[%clk
0:00:50.3]} 29. Rfc1 {[%clk 0:00:25.8]} 29... Bf5 {[%clk 0:00:46.8]} 30. Rc7
{[%clk 0:00:20.4]} 30... a6 {[%clk 0:00:37]} 31. Re7 {[%clk 0:00:13.7]} 31...
Rd8 {[%clk 0:00:32.6]} 32. Rxe5 {[%clk 0:00:10.7]} 32... Rd2 {[%clk 0:00:32.4]}
33. Rc7 {[%clk 0:00:08]} 33... Kf8 {[%clk 0:00:25.5]} 34. Ra7 {[%clk 0:00:05]}
34... Bd7 {[%clk 0:00:19]} 0-1

[Event "Late-Titled-Tuesday-Blitz-May-07-2024"]
[Site "Chess.com"]
[Date "2024.05.07"]
[Round "3"]
[White "GiorgianBarbosa"]
[Black "gunslinger222"]
[Result "1-0"]
[WhiteElo "2494"]
[BlackElo "2296"]
[TimeControl "180+1"]
[EndTime "14:28:12 PDT"]
[Termination "GiorgianBarbosa won by resignation"]

1. d4 {[%clk 0:03:00]} 1... d5 {[%clk 0:02:57]} 2. c4 {[%clk 0:02:59.3]} 2... e5
{[%clk 0:02:56.1]} 3. dxe5 {[%clk 0:02:58.4]} 3... d4 {[%clk 0:02:57]} 4. Nf3
{[%clk 0:02:58.6]} 4... Nc6 {[%clk 0:02:56.6]} 5. g3 {[%clk 0:02:59.5]} 5...
Nge7 {[%clk 0:02:52.9]} 6. Bg2 {[%clk 0:02:59.7]} 6... Ng6 {[%clk 0:02:52.8]} 7.
O-O {[%clk 0:03:00.1]} 7... h5 {[%clk 0:02:52.8]} 8. Bg5 {[%clk 0:02:57.7]} 8...
Be7 {[%clk 0:02:52.6]} 9. Bxe7 {[%clk 0:02:44.6]} 9... Kxe7 {[%clk 0:02:51.5]}
10. Nbd2 {[%clk 0:02:45.5]} 10... Ngxe5 {[%clk 0:02:46.5]} 11. Qc2 {[%clk
0:02:33.5]} 11... g6 {[%clk 0:02:42.8]} 12. Nb3 {[%clk 0:02:20.9]} 12... Bf5
{[%clk 0:02:39.3]} 13. Qc1 {[%clk 0:02:20.8]} 13... d3 {[%clk 0:02:23.9]} 14.
exd3 {[%clk 0:02:13.3]} 14... Nxd3 {[%clk 0:02:23.2]} 15. Qe3+ {[%clk
0:02:11.2]} 15... Kf6 {[%clk 0:02:23.6]} 16. Rad1 {[%clk 0:01:56.1]} 16... Re8
{[%clk 0:02:22.2]} 17. Qh6 {[%clk 0:01:52.1]} 17... Qe7 {[%clk 0:01:56.4]} 18.
Nbd4 {[%clk 0:01:35.1]} 18... Be4 {[%clk 0:01:42.7]} 19. Ng5 {[%clk 0:01:01.5]}
19... Bxg2 {[%clk 0:01:25.4]} 20. Nh7+ {[%clk 0:01:00.8]} 20... Ke5 {[%clk
0:01:23.8]} 21. Qe3+ {[%clk 0:00:52.6]} 21... Be4 {[%clk 0:01:10.2]} 22. Rxd3
{[%clk 0:00:49.8]} 22... Nxd4 {[%clk 0:01:03.4]} 23. Rxd4 {[%clk 0:00:27.9]}
23... f5 {[%clk 0:00:50.7]} 24. f3 {[%clk 0:00:27.7]} 24... c5 {[%clk
0:00:41.4]} 25. Rd5+ {[%clk 0:00:20.5]} 25... Ke6 {[%clk 0:00:38.2]} 26. fxe4
{[%clk 0:00:19.4]} 26... Kf7 {[%clk 0:00:20.5]} 27. e5 {[%clk 0:00:13.8]} 27...
Kg7 {[%clk 0:00:18.6]} 28. Ng5 {[%clk 0:00:14.2]} 28... b5 {[%clk 0:00:16.8]}
29. b3 {[%clk 0:00:13.2]} 29... bxc4 {[%clk 0:00:16.6]} 30. bxc4 {[%clk
0:00:14.1]} 30... Rab8 {[%clk 0:00:17.3]} 31. e6 {[%clk 0:00:13.8]} 31... Rb2
{[%clk 0:00:16.8]} 32. Qe5+ {[%clk 0:00:08.9]} 32... Qf6 {[%clk 0:00:17.2]} 33.
Rd7+ {[%clk 0:00:09.3]} 1-0